[Event "*** SCC Grand Prix: Titled Tuesday Blitz"]
[Site "Chess.com"]
[Date "2020.07.07"]
[Round "6"]
[White "JesseKraai"]
[Black "Paladin61"]
[Result "1/2-1/2"]
[WhiteElo "2493"]
[BlackElo "2635"]
[TimeControl "180+1"]
[EndTime "11:07:24 PDT"]
[Termination "Game drawn by repetition"]

1. d4 {[%clk 0:03:00.9]} 1... Nf6 {[%clk 0:02:59.1]} 2. c4 {[%clk 0:03:01.1]}
2... g6 {[%clk 0:02:59.3]} 3. Nc3 {[%clk 0:03:01.3]} 3... Bg7 {[%clk 0:02:58.1]}
4. e4 {[%clk 0:03:01]} 4... O-O {[%clk 0:02:58.1]} 5. Nf3 {[%clk 0:03:01.2]}
5... d6 {[%clk 0:02:58.3]} 6. Be2 {[%clk 0:03:01.5]} 6... e5 {[%clk 0:02:58.1]}
7. d5 {[%clk 0:03:01.8]} 7... a5 {[%clk 0:02:55.2]} 8. Bg5 {[%clk 0:03:01.6]}
8... h6 {[%clk 0:02:52.2]} 9. Bh4 {[%clk 0:03:01.8]} 9... g5 {[%clk 0:02:52]}
10. Bg3 {[%clk 0:03:01.4]} 10... Nh5 {[%clk 0:02:52.5]} 11. h4 {[%clk
0:03:01.2]} 11... g4 {[%clk 0:02:52.4]} 12. Nh2 {[%clk 0:03:01]} 12... Nxg3
{[%clk 0:02:51.9]} 13. fxg3 {[%clk 0:03:00.9]} 13... h5 {[%clk 0:02:52.8]} 14.
O-O {[%clk 0:02:56.3]} 14... Na6 {[%clk 0:02:47.2]} 15. Rf2 {[%clk 0:02:22.2]}
15... Nc5 {[%clk 0:02:38]} 16. Qc2 {[%clk 0:02:20.4]} 16... Bh6 {[%clk
0:02:31.6]} 17. Nf1 {[%clk 0:02:19.8]} 17... Bd7 {[%clk 0:02:22.1]} 18. Re1
{[%clk 0:02:18.5]} 18... Qc8 {[%clk 0:02:08.3]} 19. Bd3 {[%clk 0:02:10.3]} 19...
f5 {[%clk 0:02:00.7]} 20. exf5 {[%clk 0:02:08.5]} 20... Nxd3 {[%clk 0:02:00]}
21. Qxd3 {[%clk 0:02:08.3]} 21... Bxf5 {[%clk 0:01:55.7]} 22. Qd1 {[%clk
0:01:58.9]} 22... Qd7 {[%clk 0:01:38.7]} 23. Ne3 {[%clk 0:01:57.3]} 23... Bg6
{[%clk 0:01:33.1]} 24. Rxf8+ {[%clk 0:01:55.4]} 24... Rxf8 {[%clk 0:01:32.7]}
25. Qe2 {[%clk 0:01:55.3]} 25... Qh7 {[%clk 0:01:21.4]} 26. Kh2 {[%clk
0:01:39.2]} 26... Bd3 {[%clk 0:01:16.5]} 27. Qd1 {[%clk 0:01:39.3]} 27... Rf2
{[%clk 0:01:13.3]} 28. b3 {[%clk 0:01:28.7]} 28... e4 {[%clk 0:01:00.3]} 29.
Nxg4 {[%clk 0:01:18.1]} 29... hxg4 {[%clk 0:00:49.9]} 30. Qxg4+ {[%clk
0:01:17.7]} 30... Qg7 {[%clk 0:00:33.2]} 31. Qe6+ {[%clk 0:01:16.4]} 31... Kh7
{[%clk 0:00:23.6]} 32. Nxe4 {[%clk 0:01:14.8]} 32... Rf7 {[%clk 0:00:15.8]} 33.
Qc8 {[%clk 0:00:51.7]} 33... b6 {[%clk 0:00:13.2]} 34. Qe6 {[%clk 0:00:50.1]}
34... Kh8 {[%clk 0:00:11.3]} 35. Qe8+ {[%clk 0:00:48.6]} 35... Rf8 {[%clk
0:00:10.6]} 36. Qe6 {[%clk 0:00:48.4]} 36... Kh7 {[%clk 0:00:07.9]} 37. Kh3
{[%clk 0:00:41]} 37... Kh8 {[%clk 0:00:06]} 38. g4 {[%clk 0:00:37.5]} 38... Bf4
{[%clk 0:00:05.9]} 39. g5 {[%clk 0:00:36]} 39... Be5 {[%clk 0:00:04.2]} 40. Qg4
{[%clk 0:00:34.2]} 40... Qh7 {[%clk 0:00:03.8]} 41. Ng3 {[%clk 0:00:26.2]} 41...
Bc2 {[%clk 0:00:03.4]} 42. Rf1 {[%clk 0:00:21.8]} 42... Rg8 {[%clk 0:00:02.5]}
43. Nh5 {[%clk 0:00:20.2]} 43... Bg6 {[%clk 0:00:02.7]} 44. Nf6 {[%clk
0:00:20.1]} 44... Bxf6 {[%clk 0:00:03.1]} 45. Rxf6 {[%clk 0:00:20]} 45... Be8
{[%clk 0:00:03.2]} 46. Qf4 {[%clk 0:00:18.4]} 46... Bd7+ {[%clk 0:00:03.5]} 47.
Kh2 {[%clk 0:00:19]} 47... Rg6 {[%clk 0:00:02.9]} 48. Rf7 {[%clk 0:00:19.1]}
48... Rg7 {[%clk 0:00:03.2]} 49. Qf6 {[%clk 0:00:19.1]} 49... Qxh4+ {[%clk
0:00:02.2]} 50. Kg1 {[%clk 0:00:18.4]} 50... Qe1+ {[%clk 0:00:03.1]} 51. Kh2
{[%clk 0:00:18.8]} 51... Qh4+ {[%clk 0:00:03.4]} 52. Kg1 {[%clk 0:00:19.2]}
52... Qe1+ {[%clk 0:00:04.2]} 53. Kh2 {[%clk 0:00:19.6]} 53... Qh4+ {[%clk
0:00:04.6]} 1/2-1/2

[Event "*** SCC Grand Prix: Titled Tuesday Blitz"]
[Site "Chess.com"]
[Date "2020.07.07"]
[Round "6"]
[White "Oleksandr_Bortnyk"]
[Black "Grandelicious"]
[Result "1-0"]
[WhiteElo "2931"]
[BlackElo "2788"]
[TimeControl "180+1"]
[EndTime "11:07:28 PDT"]
[Termination "Oleksandr_Bortnyk won by resignation"]

1. d4 {[%clk 0:03:00.3]} 1... Nf6 {[%clk 0:02:57.2]} 2. Bf4 {[%clk 0:02:59.3]}
2... c5 {[%clk 0:02:55.8]} 3. e3 {[%clk 0:02:57]} 3... d5 {[%clk 0:02:46.8]} 4.
Nc3 {[%clk 0:02:37.9]} 4... cxd4 {[%clk 0:02:35.2]} 5. exd4 {[%clk 0:02:38.8]}
5... a6 {[%clk 0:02:30.4]} 6. Nf3 {[%clk 0:02:39]} 6... Bg4 {[%clk 0:02:26.9]}
7. h3 {[%clk 0:02:39.2]} 7... Bxf3 {[%clk 0:02:20.5]} 8. Qxf3 {[%clk 0:02:39.2]}
8... Nc6 {[%clk 0:02:20.8]} 9. O-O-O {[%clk 0:02:12.8]} 9... e6 {[%clk
0:02:17.4]} 10. g4 {[%clk 0:02:12.3]} 10... Bb4 {[%clk 0:02:11]} 11. g5 {[%clk
0:02:11.3]} 11... Bxc3 {[%clk 0:01:59.4]} 12. Qxc3 {[%clk 0:02:11.8]} 12... Ne4
{[%clk 0:01:58.3]} 13. Qe3 {[%clk 0:02:11.1]} 13... O-O {[%clk 0:01:38.9]} 14.
Bd3 {[%clk 0:02:07.3]} 14... Nb4 {[%clk 0:01:20.3]} 15. Bxe4 {[%clk 0:01:52.8]}
15... dxe4 {[%clk 0:01:19.1]} 16. a3 {[%clk 0:01:53.4]} 16... Nd5 {[%clk
0:01:15.2]} 17. Qxe4 {[%clk 0:01:53.7]} 17... b5 {[%clk 0:01:13.2]} 18. h4
{[%clk 0:01:50.7]} 18... Qa5 {[%clk 0:00:58.7]} 19. Bd2 {[%clk 0:01:31.6]} 19...
Qa4 {[%clk 0:00:54.9]} 20. h5 {[%clk 0:01:26.2]} 20... b4 {[%clk 0:00:51.2]} 21.
Rh3 {[%clk 0:01:26.3]} 21... Rac8 {[%clk 0:00:39.9]} 22. g6 {[%clk 0:01:24.4]}
22... Rc6 {[%clk 0:00:31.9]} 23. gxh7+ {[%clk 0:01:17]} 23... Kh8 {[%clk
0:00:31.4]} 24. h6 {[%clk 0:00:43.3]} 24... g6 {[%clk 0:00:31.3]} 25. Kb1 {[%clk
0:00:43.7]} 25... Rfc8 {[%clk 0:00:26.9]} 26. Rc1 {[%clk 0:00:43.9]} 26... Kxh7
{[%clk 0:00:21.1]} 27. Rf3 {[%clk 0:00:28.7]} 27... R8c7 {[%clk 0:00:20.4]} 28.
Bf4 {[%clk 0:00:21.3]} 28... Rb7 {[%clk 0:00:17]} 29. Rb3 {[%clk 0:00:17.4]}
29... a5 {[%clk 0:00:09.8]} 30. Bd2 {[%clk 0:00:14.4]} 30... Qb5 {[%clk
0:00:09.6]} 31. Rg1 {[%clk 0:00:07.9]} 31... Rbc7 {[%clk 0:00:08.9]} 32. Qe5
{[%clk 0:00:07.3]} 32... f6 {[%clk 0:00:08.8]} 33. Qg3 {[%clk 0:00:04.6]} 33...
Ne7 {[%clk 0:00:08.7]} 34. Qf3 {[%clk 0:00:02.7]} 34... Nf5 {[%clk 0:00:07.5]}
35. Qd3 {[%clk 0:00:02]} 35... Qxd3 {[%clk 0:00:06.4]} 36. Rxd3 {[%clk
0:00:02.9]} 36... bxa3 {[%clk 0:00:06.6]} 37. Bxa5 {[%clk 0:00:03.2]} 37... Rb7
{[%clk 0:00:04.8]} 38. b3 {[%clk 0:00:03.6]} 38... a2+ {[%clk 0:00:03.2]} 39.
Kb2 {[%clk 0:00:03.4]} 39... Ra7 {[%clk 0:00:03.6]} 40. Bc3 {[%clk 0:00:03.5]}
40... Nd6 {[%clk 0:00:02.8]} 41. Ra1 {[%clk 0:00:03.7]} 41... Nb5 {[%clk
0:00:02.9]} 42. Bb4 {[%clk 0:00:03.5]} 42... Rd7 {[%clk 0:00:02.3]} 43. c3
{[%clk 0:00:03.4]} 43... e5 {[%clk 0:00:03.2]} 44. d5 {[%clk 0:00:03.2]} 44...
Rc8 {[%clk 0:00:03.5]} 45. Rxa2 {[%clk 0:00:03.3]} 45... e4 {[%clk 0:00:04.4]}
46. Rd2 {[%clk 0:00:02.9]} 46... f5 {[%clk 0:00:04.5]} 47. c4 {[%clk 0:00:03.5]}
47... Nd6 {[%clk 0:00:04.8]} 48. Bxd6 {[%clk 0:00:03.5]} 48... Rxd6 {[%clk
0:00:05.7]} 49. Kc3 {[%clk 0:00:03.9]} 49... Kxh6 {[%clk 0:00:05.7]} 50. Kd4
{[%clk 0:00:04.5]} 50... Rb6 {[%clk 0:00:05.9]} 51. Rab2 {[%clk 0:00:04.5]}
51... Kg5 {[%clk 0:00:06.3]} 52. b4 {[%clk 0:00:04.3]} 52... Kf4 {[%clk
0:00:05.9]} 53. c5 {[%clk 0:00:04.7]} 53... Rbb8 {[%clk 0:00:06.7]} 54. d6
{[%clk 0:00:05.2]} 54... Rd8 {[%clk 0:00:07.3]} 55. Kd5 {[%clk 0:00:05.3]} 55...
Kf3 {[%clk 0:00:07.7]} 56. b5 {[%clk 0:00:04.5]} 56... f4 {[%clk 0:00:07.6]} 57.
c6 {[%clk 0:00:05]} 57... e3 {[%clk 0:00:08.1]} 58. fxe3 {[%clk 0:00:05.9]}
58... fxe3 {[%clk 0:00:09]} 59. Rh2 {[%clk 0:00:06.5]} 59... e2 {[%clk
0:00:06.8]} 60. Rhxe2 {[%clk 0:00:06.1]} 60... Rxb5+ {[%clk 0:00:07.7]} 61. Rxb5
{[%clk 0:00:05.7]} 61... Kxe2 {[%clk 0:00:08.6]} 62. c7 {[%clk 0:00:06.1]} 62...
Rg8 {[%clk 0:00:08.8]} 63. d7 {[%clk 0:00:06.4]} 1-0

[Event "*** SCC Grand Prix: Titled Tuesday Blitz"]
[Site "Chess.com"]
[Date "2020.07.07"]
[Round "6"]
[White "Fusikk"]
[Black "Region_07"]
[Result "1-0"]
[WhiteElo "2548"]
[BlackElo "2350"]
[TimeControl "180+1"]
[EndTime "11:07:28 PDT"]
[Termination "Fusikk won on time"]

1. e4 {[%clk 0:03:00.9]} 1... Nc6 {[%clk 0:02:51.8]} 2. Nf3 {[%clk 0:03:00.5]}
2... f5 {[%clk 0:02:47.1]} 3. exf5 {[%clk 0:03:00.2]} 3... d5 {[%clk 0:02:47.1]}
4. d4 {[%clk 0:02:59.3]} 4... Bxf5 {[%clk 0:02:47.3]} 5. Bd3 {[%clk 0:02:59]}
5... Bg4 {[%clk 0:02:46.6]} 6. c3 {[%clk 0:02:55.2]} 6... Nf6 {[%clk 0:02:44.7]}
7. h3 {[%clk 0:02:54.9]} 7... Bxf3 {[%clk 0:02:44.9]} 8. Qxf3 {[%clk 0:02:54.7]}
8... e5 {[%clk 0:02:45.6]} 9. dxe5 {[%clk 0:02:51.4]} 9... Nxe5 {[%clk
0:02:46.5]} 10. Qe2 {[%clk 0:02:51.8]} 10... Qe7 {[%clk 0:02:47.1]} 11. Bc2
{[%clk 0:02:44.2]} 11... O-O-O {[%clk 0:02:46.5]} 12. Bf4 {[%clk 0:02:40.9]}
12... Re8 {[%clk 0:02:43.5]} 13. O-O {[%clk 0:02:40.2]} 13... g6 {[%clk
0:02:42.2]} 14. Nd2 {[%clk 0:02:30.5]} 14... Bg7 {[%clk 0:02:41.3]} 15. Rfe1
{[%clk 0:02:17.5]} 15... Nh5 {[%clk 0:02:29.1]} 16. Bh2 {[%clk 0:02:13]} 16...
Rhf8 {[%clk 0:02:27.8]} 17. f4 {[%clk 0:01:58.1]} 17... Nxf4 {[%clk 0:02:20.1]}
18. Qe3 {[%clk 0:01:43.4]} 18... Qg5 {[%clk 0:00:45.9]} 19. Bxf4 {[%clk
0:01:37.3]} 19... Qxf4 {[%clk 0:00:45]} 20. Qxf4 {[%clk 0:01:16.6]} 20... Rxf4
{[%clk 0:00:45.9]} 21. Nb3 {[%clk 0:01:10.9]} 21... Ref8 {[%clk 0:00:41.5]} 22.
Re2 {[%clk 0:01:10.1]} 22... Nc4 {[%clk 0:00:36.6]} 23. Bd3 {[%clk 0:01:03.9]}
23... Nxb2 {[%clk 0:00:30.9]} 24. Rxb2 {[%clk 0:01:04.8]} 24... Bxc3 {[%clk
0:00:31]} 25. Rab1 {[%clk 0:01:01.1]} 25... Bxb2 {[%clk 0:00:30.9]} 26. Rxb2
{[%clk 0:01:02]} 26... b6 {[%clk 0:00:31.1]} 27. Ba6+ {[%clk 0:00:52.7]} 27...
Kd7 {[%clk 0:00:28.7]} 28. Rd2 {[%clk 0:00:51.5]} 28... Kd6 {[%clk 0:00:27]} 29.
Nd4 {[%clk 0:00:49.3]} 29... c5 {[%clk 0:00:22.3]} 30. Nb5+ {[%clk 0:00:47.1]}
30... Ke6 {[%clk 0:00:16]} 31. Nc7+ {[%clk 0:00:44.3]} 31... Kf7 {[%clk
0:00:10]} 32. Bb7 {[%clk 0:00:33.8]} 32... Rd4 {[%clk 0:00:09.9]} 33. Rf2+
{[%clk 0:00:28.2]} 33... Ke7 {[%clk 0:00:08.5]} 34. Rxf8 {[%clk 0:00:28.3]}
34... Kxf8 {[%clk 0:00:04.6]} 35. Ne6+ {[%clk 0:00:28]} 35... Ke7 {[%clk
0:00:05.2]} 36. Nxd4 {[%clk 0:00:28.9]} 36... cxd4 {[%clk 0:00:05.7]} 37. Bxd5
{[%clk 0:00:29]} 37... Kd6 {[%clk 0:00:06.6]} 38. Bb3 {[%clk 0:00:28.8]} 38...
Kc5 {[%clk 0:00:06]} 39. Kf2 {[%clk 0:00:29]} 39... Kb4 {[%clk 0:00:06.3]} 40.
Ke2 {[%clk 0:00:27.8]} 40... Kc3 {[%clk 0:00:06.9]} 41. h4 {[%clk 0:00:24.3]}
41... d3+ {[%clk 0:00:06.9]} 42. Kd1 {[%clk 0:00:23.9]} 42... b5 {[%clk
0:00:07.1]} 43. g4 {[%clk 0:00:22.6]} 43... a5 {[%clk 0:00:07.1]} 44. Bg8 {[%clk
0:00:17.1]} 44... h6 {[%clk 0:00:06.4]} 45. g5 {[%clk 0:00:16.6]} 45... hxg5
{[%clk 0:00:06.3]} 46. hxg5 {[%clk 0:00:17.5]} 46... a4 {[%clk 0:00:06.7]} 47.
Bf7 {[%clk 0:00:09]} 47... b4 {[%clk 0:00:06.8]} 48. Be6 {[%clk 0:00:04.5]}
48... b3 {[%clk 0:00:05.2]} 49. axb3 {[%clk 0:00:04.7]} 49... axb3 {[%clk
0:00:05.7]} 50. Kc1 {[%clk 0:00:02]} 50... d2+ {[%clk 0:00:02.1]} 51. Kd1 {[%clk
0:00:01.7]} 51... b2 {[%clk 0:00:02.1]} 52. Ba2 {[%clk 0:00:01.6]} 52... Kd3
{[%clk 0:00:01]} 53. Bb1+ {[%clk 0:00:02.1]} 53... Ke3 {[%clk 0:00:01.9]} 54.
Bxg6 {[%clk 0:00:01.7]} 1-0

[Event "*** SCC Grand Prix: Titled Tuesday Blitz"]
[Site "Chess.com"]
[Date "2020.07.07"]
[Round "6"]
[White "Forantes"]
[Black "Escanor89"]
[Result "1-0"]
[WhiteElo "2362"]
[BlackElo "2538"]
[TimeControl "180+1"]
[EndTime "11:07:30 PDT"]
[Termination "Forantes won on time"]

1. Nf3 {[%clk 0:03:00.4]} 1... Nf6 {[%clk 0:02:59.3]} 2. g3 {[%clk 0:03:00.8]}
2... g6 {[%clk 0:02:59]} 3. Bg2 {[%clk 0:03:01.4]} 3... Bg7 {[%clk 0:02:59.4]}
4. O-O {[%clk 0:03:02]} 4... O-O {[%clk 0:03:00]} 5. d4 {[%clk 0:03:02.3]} 5...
d6 {[%clk 0:03:00.2]} 6. c4 {[%clk 0:03:02.3]} 6... Nc6 {[%clk 0:02:59.8]} 7.
Nc3 {[%clk 0:03:02.7]} 7... e5 {[%clk 0:02:59.3]} 8. dxe5 {[%clk 0:02:57.8]}
8... dxe5 {[%clk 0:02:59]} 9. Bg5 {[%clk 0:02:58.3]} 9... Be6 {[%clk 0:02:55.6]}
10. Nd5 {[%clk 0:02:18.2]} 10... Bxd5 {[%clk 0:01:39.3]} 11. cxd5 {[%clk
0:02:17.9]} 11... Qxd5 {[%clk 0:01:30.3]} 12. Qxd5 {[%clk 0:02:17.4]} 12... Nxd5
{[%clk 0:01:30.1]} 13. Nxe5 {[%clk 0:02:17.9]} 13... Nxe5 {[%clk 0:01:21.8]} 14.
Bxd5 {[%clk 0:02:17.7]} 14... c6 {[%clk 0:01:22.4]} 15. Bb3 {[%clk 0:02:17.4]}
15... h6 {[%clk 0:01:19.7]} 16. Be7 {[%clk 0:01:44.6]} 16... Rfe8 {[%clk
0:01:18.4]} 17. Bb4 {[%clk 0:01:45.1]} 17... Nd7 {[%clk 0:01:12.2]} 18. Rad1
{[%clk 0:01:40.2]} 18... Nb6 {[%clk 0:01:09.8]} 19. Rd2 {[%clk 0:01:39.2]} 19...
a5 {[%clk 0:01:00.5]} 20. Bc5 {[%clk 0:01:31.7]} 20... Ra6 {[%clk 0:00:54.6]}
21. a4 {[%clk 0:00:41.9]} 21... Bf8 {[%clk 0:00:42.6]} 22. Bd4 {[%clk
0:00:34.2]} 22... Bb4 {[%clk 0:00:41.5]} 23. Rc2 {[%clk 0:00:26.7]} 23... Nd7
{[%clk 0:00:38.3]} 24. Rd1 {[%clk 0:00:25.5]} 24... Nf8 {[%clk 0:00:37.6]} 25.
f3 {[%clk 0:00:24.5]} 25... Raa8 {[%clk 0:00:34.3]} 26. Bb6 {[%clk 0:00:23.9]}
26... Re7 {[%clk 0:00:25.4]} 27. e4 {[%clk 0:00:21.9]} 27... Rae8 {[%clk
0:00:24]} 28. Kf2 {[%clk 0:00:20.6]} 28... Nd7 {[%clk 0:00:22.7]} 29. Be3 {[%clk
0:00:19]} 29... Ne5 {[%clk 0:00:22.4]} 30. Bxh6 {[%clk 0:00:18.5]} 30... Kh7
{[%clk 0:00:19.9]} 31. Bg5 {[%clk 0:00:18.9]} 31... Rc7 {[%clk 0:00:18.2]} 32.
Bf6 {[%clk 0:00:19.1]} 32... Nd7 {[%clk 0:00:17.3]} 33. Bd4 {[%clk 0:00:17.5]}
33... Kg8 {[%clk 0:00:12.3]} 34. Be3 {[%clk 0:00:16.7]} 34... Ne5 {[%clk
0:00:11.4]} 35. Bb6 {[%clk 0:00:16.1]} 35... Rcc8 {[%clk 0:00:11.2]} 36. f4
{[%clk 0:00:15.4]} 36... Ng4+ {[%clk 0:00:10.8]} 37. Kf3 {[%clk 0:00:16]} 37...
Nf6 {[%clk 0:00:10.1]} 38. e5 {[%clk 0:00:15.9]} 38... Nd5 {[%clk 0:00:09.3]}
39. Bxd5 {[%clk 0:00:15.3]} 39... cxd5 {[%clk 0:00:09.6]} 40. Rxc8 {[%clk
0:00:15.9]} 40... Rxc8 {[%clk 0:00:09.8]} 41. Rxd5 {[%clk 0:00:16.8]} 41... Rc2
{[%clk 0:00:07.9]} 42. Bd8 {[%clk 0:00:14.6]} 42... Rxb2 {[%clk 0:00:05.1]} 43.
Bf6 {[%clk 0:00:14.9]} 43... Rd2 {[%clk 0:00:05.4]} 44. Rb5 {[%clk 0:00:13.5]}
44... Rd3+ {[%clk 0:00:04.6]} 45. Ke4 {[%clk 0:00:12.7]} 45... Rd7 {[%clk
0:00:05.5]} 46. h4 {[%clk 0:00:10.9]} 46... Kf8 {[%clk 0:00:05.5]} 47. g4 {[%clk
0:00:11.2]} 47... Rc7 {[%clk 0:00:05.6]} 48. h5 {[%clk 0:00:07.4]} 48... gxh5
{[%clk 0:00:05.7]} 49. gxh5 {[%clk 0:00:07.6]} 49... Kg8 {[%clk 0:00:06.4]} 50.
Kf5 {[%clk 0:00:07.9]} 50... Kh7 {[%clk 0:00:06.5]} 51. Rd5 {[%clk 0:00:07.8]}
51... Rc8 {[%clk 0:00:05.3]} 52. Rd7 {[%clk 0:00:08.2]} 52... Kg8 {[%clk
0:00:02.4]} 53. Rxb7 {[%clk 0:00:06.1]} 1-0

[Event "*** SCC Grand Prix: Titled Tuesday Blitz"]
[Site "Chess.com"]
[Date "2020.07.07"]
[Round "6"]
[White "amatatanav"]
[Black "The_Machine04"]
[Result "1-0"]
[WhiteElo "2428"]
[BlackElo "2275"]
[TimeControl "180+1"]
[EndTime "11:07:30 PDT"]
[Termination "amatatanav won on time"]

1. e4 {[%clk 0:03:00.9]} 1... d6 {[%clk 0:02:54.6]} 2. d4 {[%clk 0:03:00]} 2...
Nf6 {[%clk 0:02:52.2]} 3. Nc3 {[%clk 0:03:00.1]} 3... e5 {[%clk 0:02:46]} 4.
dxe5 {[%clk 0:02:59.7]} 4... dxe5 {[%clk 0:02:46.9]} 5. Qxd8+ {[%clk 0:02:59.6]}
5... Kxd8 {[%clk 0:02:47.8]} 6. Bg5 {[%clk 0:02:58.5]} 6... Be6 {[%clk
0:02:44.9]} 7. O-O-O+ {[%clk 0:02:55.1]} 7... Nd7 {[%clk 0:02:42.7]} 8. f4
{[%clk 0:02:54.7]} 8... exf4 {[%clk 0:02:36.7]} 9. Nf3 {[%clk 0:02:54.2]} 9...
h6 {[%clk 0:02:30.2]} 10. Bxf4 {[%clk 0:02:52.8]} 10... g5 {[%clk 0:02:15]} 11.
Bg3 {[%clk 0:02:43.5]} 11... a6 {[%clk 0:01:37.9]} 12. Nd4 {[%clk 0:02:42]}
12... Nh5 {[%clk 0:01:28.3]} 13. Nxe6+ {[%clk 0:02:33.9]} 13... fxe6 {[%clk
0:01:27.6]} 14. Be5 {[%clk 0:02:19]} 14... Bg7 {[%clk 0:01:21.9]} 15. Bxg7
{[%clk 0:02:06.5]} 15... Nxg7 {[%clk 0:01:22.8]} 16. e5 {[%clk 0:01:47.5]} 16...
Ke7 {[%clk 0:01:17]} 17. Re1 {[%clk 0:01:41.8]} 17... Nf5 {[%clk 0:01:10.1]} 18.
g4 {[%clk 0:01:35]} 18... Nh4 {[%clk 0:01:06.9]} 19. Bd3 {[%clk 0:01:15.6]}
19... Rhf8 {[%clk 0:01:04.3]} 20. Re2 {[%clk 0:00:50.9]} 20... Nc5 {[%clk
0:00:58.5]} 21. Ne4 {[%clk 0:00:46.6]} 21... Nxe4 {[%clk 0:00:54.3]} 22. Bxe4
{[%clk 0:00:46]} 22... c6 {[%clk 0:00:51.6]} 23. Kd2 {[%clk 0:00:42.5]} 23...
Rad8+ {[%clk 0:00:47.4]} 24. Ke3 {[%clk 0:00:42]} 24... Rf4 {[%clk 0:00:47.5]}
25. h3 {[%clk 0:00:39.9]} 25... Rff8 {[%clk 0:00:32.3]} 26. c3 {[%clk
0:00:38.9]} 26... Rd7 {[%clk 0:00:20.6]} 27. a4 {[%clk 0:00:38.3]} 27... a5
{[%clk 0:00:17.7]} 28. Ra1 {[%clk 0:00:35.4]} 28... Rdd8 {[%clk 0:00:16.8]} 29.
Ra3 {[%clk 0:00:35]} 29... Rg8 {[%clk 0:00:15.7]} 30. Rb3 {[%clk 0:00:34.9]}
30... Rd7 {[%clk 0:00:16]} 31. Rb6 {[%clk 0:00:34.2]} 31... Ng6 {[%clk
0:00:14.9]} 32. Bxg6 {[%clk 0:00:33.3]} 32... Rxg6 {[%clk 0:00:15.8]} 33. Rd2
{[%clk 0:00:31.5]} 33... Rc7 {[%clk 0:00:11.7]} 34. Rd4 {[%clk 0:00:19.5]} 34...
Rg8 {[%clk 0:00:09.9]} 35. Rc4 {[%clk 0:00:19.3]} 35... Rd8 {[%clk 0:00:09.1]}
36. Rc5 {[%clk 0:00:18.6]} 36... Rd5 {[%clk 0:00:08.6]} 37. Rxd5 {[%clk
0:00:13.5]} 37... exd5 {[%clk 0:00:09.5]} 38. b4 {[%clk 0:00:12.7]} 38... axb4
{[%clk 0:00:08.3]} 39. cxb4 {[%clk 0:00:13.6]} 39... Ke6 {[%clk 0:00:08.4]} 40.
Kd4 {[%clk 0:00:13.9]} 40... Rf7 {[%clk 0:00:07.7]} 41. a5 {[%clk 0:00:06.2]}
41... Rf4+ {[%clk 0:00:06.4]} 42. Ke3 {[%clk 0:00:05.7]} 42... Rf7 {[%clk
0:00:03.2]} 43. Kd4 {[%clk 0:00:04.9]} 43... Rf4+ {[%clk 0:00:01.2]} 44. Kd3
{[%clk 0:00:03.9]} 44... Re4 {[%clk 0:00:01.7]} 45. Rxb7 {[%clk 0:00:03.3]}
45... Kxe5 {[%clk 0:00:01.7]} 46. a6 {[%clk 0:00:03.2]} 46... Re1 {[%clk
0:00:01.3]} 47. Rb6 {[%clk 0:00:01.9]} 47... Kd6 {[%clk 0:00:02.2]} 48. b5
{[%clk 0:00:01.9]} 48... Ra1 {[%clk 0:00:02.4]} 49. Rxc6+ {[%clk 0:00:02.2]}
49... Kd7 {[%clk 0:00:03.1]} 50. Rxh6 {[%clk 0:00:02.3]} 50... Ra3+ {[%clk
0:00:03.4]} 51. Kd4 {[%clk 0:00:02.8]} 51... Rb3 {[%clk 0:00:03.4]} 52. Kc5
{[%clk 0:00:02.9]} 52... d4 {[%clk 0:00:03.2]} 53. Rd6+ {[%clk 0:00:03.3]} 53...
Kc7 {[%clk 0:00:02.7]} 54. Rxd4 {[%clk 0:00:04.2]} 54... Rxh3 {[%clk 0:00:02.2]}
55. b6+ {[%clk 0:00:04.7]} 55... Kc8 {[%clk 0:00:01.8]} 56. b7+ {[%clk
0:00:04.6]} 56... Kc7 {[%clk 0:00:01.4]} 57. Rd7+ {[%clk 0:00:04.6]} 1-0